fUST/lending_fUST_20260501
["ID","MTS","AMOUNT","RATE_DAILY","PERIOD"]
[421408062,1777576242000,-99662.05224267,0.00018479,2]
[421408082,1777576242000,-251.95417932,0.000185,2]
[421408052,1777576242000,-294.72910767,0.000184,2]
[421408027,1777576242000,-165.55598906,0.00018033,7]
[421408050,1777576242000,-448.21894705,0.000184,2]
[421408028,1777576242000,-775.70128674,0.000182,2]
[421408025,1777576242000,-645.6,0.00018015,2]
[421408029,1777576242000,-3636.24285557,0.000182,2]
[421408026,1777576242000,-864.0,0.00018017,2]
[421408031,1777576242000,-179.87392412,0.000182,2]
[421408041,1777576242000,-165.55598906,0.00018247,7]
[421408088,1777576242000,-3636.24285557,0.000186,2]
[421408043,1777576242000,-2876.18991768,0.00018376,2]
[421408040,1777576242000,-645.6,0.00018214,2]
[421408039,1777576242000,-4246.02874838,0.000182,2]
[421408042,1777576242000,-151.0,0.000183,2]
[421408032,1777576242000,-206.61670469,0.000182,2]
[421408030,1777576242000,-355.43924412,0.000182,2]
[421408036,1777576242000,-844.9303583,0.000182,2]
[421408053,1777576242000,-844.9303583,0.000184,2]
[421408038,1777576242000,-251.95417932,0.000182,2]
[421408034,1777576242000,-168.97433203,0.000182,2]
[421408035,1777576242000,-294.72910767,0.000182,2]
[421408037,1777576242000,-198.80859224,0.000182,2]
[421408045,1777576242000,-775.70128674,0.000184,2]
[421408055,1777576242000,-4246.02874838,0.000184,2]
[421408054,1777576242000,-251.95417932,0.000184,2]
[421408046,1777576242000,-3636.24285557,0.000184,2]
[421408057,1777576242000,-645.6,0.00018412,2]
[421408056,1777576242000,-151.0,0.000184,2]
[421408047,1777576242000,-355.43924412,0.000184,2]
[421408044,1777576242000,-448.0,0.00018399,2]
[421408049,1777576242000,-206.61670469,0.000184,2]
[421408051,1777576242000,-168.97433203,0.000184,2]
[421408048,1777576242000,-179.87392412,0.000184,2]
[421408033,1777576242000,-448.21894705,0.000182,2]
[421408091,1777576242000,-456.0872351,0.00018698,2]
[421408143,1777576242000,-9438.12054277,0.000191,2]
[421408092,1777576242000,-3636.24285557,0.000187,2]
[421408126,1777576242000,-250.0,0.000191,2]
[421408127,1777576242000,-250.0,0.000191,2]
[421408125,1777576242000,-250.0,0.000191,2]
[421408124,1777576242000,-250.0,0.000191,2]
[421408132,1777576242000,-151.0,0.000191,2]
[421408128,1777576242000,-250.0,0.000191,2]
[421408129,1777576242000,-250.0,0.000191,2]
[421408131,1777576242000,-151.0,0.000191,2]
[421408130,1777576242000,-254.5,0.000191,2]
[421408135,1777576242000,-151.0,0.000191,2]
[421408139,1777576242000,-166.836236,0.000191,2]
[421408137,1777576242000,-166.836227,0.000191,2]
[421408136,1777576242000,-166.836227,0.000191,2]
[421408144,1777576242000,-9438.12054277,0.000191,2]
[421408146,1777576242000,-9438.12054277,0.000191,2]
[421408140,1777576242000,-151.0,0.000191,2]
[421408138,1777576242000,-166.836227,0.000191,2]
[421408141,1777576242000,-151.0,0.000191,2]
[421408148,1777576242000,-2818.21569149,0.00019142,2]
[421408147,1777576242000,-165.55598906,0.00019104,60]
[421408142,1777576242000,-74891.56065312,0.000191,2]
[421408145,1777576242000,-9438.12054277,0.000191,2]
[421408149,1777576242000,-596.9256,0.00019168,2]
[421408151,1777576242000,-596.9256,0.00019168,2]
[421408152,1777576242000,-596.9256,0.00019168,2]
[421408154,1777576242000,-609.7784,0.00019168,2]
[421408155,1777576242000,-609.7784,0.00019168,2]
[421408153,1777576242000,-609.7784,0.00019168,2]
[421408090,1777576242000,-165.55598906,0.00018676,30]
[421408122,1777576242000,-3636.24285557,0.000191,2]
[421408134,1777576242000,-151.0,0.000191,2]
[421408150,1777576242000,-596.9256,0.00019168,2]
[421408123,1777576242000,-4246.02874838,0.000191,2]
[421408089,1777576242000,-645.6,0.00018611,2]
[421408093,1777576242000,-355.43924412,0.000187,2]
[421408094,1777576242000,-179.87392412,0.000187,2]
[421408107,1777576242000,-170.0,0.00018895,2]
[421408097,1777576242000,-294.72910767,0.000187,2]
[421408096,1777576242000,-448.21894705,0.000187,2]
[421408133,1777576242000,-151.0,0.000191,2]
[421408098,1777576242000,-844.9303583,0.000187,2]
[421408100,1777576242000,-251.95417932,0.000187,2]
[421408104,1777576242000,-645.6,0.00018809,2]
[421408102,1777576242000,-151.0,0.000187,2]
[421408099,1777576242000,-168.97433203,0.000187,2]
[421408103,1777576242000,-456.0872351,0.00018701,2]
[421408106,1777576242000,-165.55598906,0.0001889,60]
[421408101,1777576242000,-4246.02874838,0.000187,2]
[421408095,1777576242000,-206.61670469,0.000187,2]
[421408108,1777576242000,-3636.24285557,0.000189,2]
[421408105,1777576242000,-214.0,0.0001888,2]
[421408115,1777576242000,-154.0,0.00019,2]
[421408116,1777576242000,-2613.0,0.00019,2]
[421408117,1777576242000,-1000.0,0.00019,2]
[421408113,1777576242000,-450.0,0.00019,2]
[421408109,1777576242000,-4246.02874838,0.000189,2]
[421408118,1777576242000,-645.6,0.00019008,5]
[421408112,1777576242000,-3620.0,0.00019,3]
[421408114,1777576242000,-829.0,0.00019,2]
[421408121,1777576242000,-300.0,0.000191,2]
[421408120,1777576242000,-5438.28021923,0.00019078,2]
[421408111,1777576242000,-2982.60894464,0.00018924,2]
[421408119,1777576242000,-4819.78005198,0.00019063,2]
[421408110,1777576242000,-225.34580119,0.0001891,60]
[421408204,1777576243000,-3138.15,0.00019178,2]
[421408202,1777576243000,-675.66,0.00019178,2]
[421408200,1777576243000,-500.0,0.00019178,2]
[421408201,1777576243000,-542.32478174,0.00019178,2]
[421408185,1777576243000,-788.05,0.00019178,2]
[421408189,1777576243000,-500.0,0.00019178,2]
[421408183,1777576243000,-500.0,0.00019178,2]
[421408205,1777576243000,-500.0,0.00019178,2]
[421408187,1777576243000,-299.75698184,0.00019178,2]
[421408199,1777576243000,-500.0,0.00019178,2]
[421408211,1777576243000,-1003.57,0.00019178,2]
[421408213,1777576243000,-682.4,0.00019178,2]
[421408212,1777576243000,-1180.29,0.00019178,2]
[421408210,1777576243000,-500.0,0.00019178,2]
[421408203,1777576243000,-784.3,0.00019178,2]
[421408208,1777576243000,-500.0,0.00019178,2]
[421408207,1777576243000,-507.54,0.00019178,2]
[421408209,1777576243000,-500.0,0.00019178,2]
[421408224,1777576243000,-594.18,0.00019178,2]
[421408220,1777576243000,-450.77912426,0.00019178,2]
[421408222,1777576243000,-500.0,0.00019178,2]
[421408219,1777576243000,-676.0,0.00019178,2]
[421408180,1777576243000,-500.0,0.00019178,2]
[421408206,1777576243000,-1018.4,0.00019178,2]
[421408195,1777576243000,-1740.51,0.00019178,2]
[421408175,1777576243000,-500.0,0.00019178,2]
[421408194,1777576243000,-1380.1,0.00019178,2]
[421408162,1777576243000,-2452.5427,0.00019178,2]
[421408157,1777576243000,-500.0,0.00019173,2]
[421408156,1777576243000,-609.7784,0.00019168,2]
[421408160,1777576243000,-500.55746396,0.00019173,2]
[421408164,1777576243000,-4204.3633,0.00019178,2]
[421408165,1777576243000,-4204.3633,0.00019178,2]
[421408174,1777576243000,-500.0,0.00019178,2]
[421408166,1777576243000,-11627.528511,0.00019178,2]
[421408169,1777576243000,-500.0,0.00019178,2]
[421408223,1777576243000,-500.0,0.00019178,2]
[421408170,1777576243000,-270.0,0.00019178,2]
[421408171,1777576243000,-500.0,0.00019178,2]
[421408168,1777576243000,-500.0,0.00019178,2]
[421408173,1777576243000,-601.68328878,0.00019178,2]
[421408177,1777576243000,-500.0,0.00019178,2]
[421408167,1777576243000,-500.0,0.00019178,2]
[421408172,1777576243000,-500.0,0.00019178,2]
[421408176,1777576243000,-500.0,0.00019178,2]
[421408181,1777576243000,-1362.17,0.00019178,2]
[421408193,1777576243000,-987.3,0.00019178,2]
[421408191,1777576243000,-533.47,0.00019178,2]
[421408198,1777576243000,-3280.53,0.00019178,2]
[421408196,1777576243000,-630.98,0.00019178,2]
[421408197,1777576243000,-500.0,0.00019178,2]
[421408225,1777576243000,-500.0,0.00019178,2]
[421408158,1777576243000,-501.91972287,0.00019173,2]
[421408218,1777576243000,-500.0,0.00019178,2]
[421408250,1777576243000,-1510.51,0.00019178,2]
[421408253,1777576243000,-1082.2,0.00019178,2]
[421408263,1777576243000,-500.0,0.00019178,2]
[421408254,1777576243000,-770.27,0.00019178,2]
[421408252,1777576243000,-1127.96,0.00019178,2]
[421408256,1777576243000,-500.0,0.00019178,2]
[421408255,1777576243000,-841.22,0.00019178,2]
[421408262,1777576243000,-500.0,0.00019178,2]
[421408257,1777576243000,-1600.43,0.00019178,2]
[421408258,1777576243000,-500.0,0.00019178,2]
[421408259,1777576243000,-500.0,0.00019178,2]
[421408261,1777576243000,-500.0,0.00019178,2]
[421408265,1777576243000,-342.81867833,0.00019178,2]
[421408266,1777576243000,-500.0,0.00019178,2]
[421408264,1777576243000,-500.0,0.00019178,2]
[421408268,1777576243000,-202.15856948,0.00019178,2]
[421408272,1777576243000,-500.0,0.00019178,2]
[421408273,1777576243000,-656.83137415,0.00019178,2]
[421408271,1777576243000,-667.52,0.00019178,2]
[421408270,1777576243000,-529.76916074,0.00019178,2]
[421408269,1777576243000,-2629.74,0.00019178,2]
[421408267,1777576243000,-297.84143052,0.00019178,2]
[421408214,1777576243000,-1025.85,0.00019178,2]
[421408242,1777576243000,-500.0,0.00019178,2]
[421408251,1777576243000,-500.0,0.00019178,2]
[421408260,1777576243000,-500.0,0.00019178,2]
[421408248,1777576243000,-500.0,0.00019178,2]
[421408221,1777576243000,-639.04,0.00019178,2]
[421408226,1777576243000,-312.63041434,0.00019178,2]
[421408215,1777576243000,-628.63,0.00019178,2]
[421408249,1777576243000,-534.13,0.00019178,2]
[421408217,1777576243000,-500.0,0.00019178,2]
[421408227,1777576243000,-500.0,0.00019178,2]
[421408231,1777576243000,-597.69,0.00019178,2]
[421408230,1777576243000,-500.0,0.00019178,2]
[421408228,1777576243000,-500.0,0.00019178,2]
[421408233,1777576243000,-500.0,0.00019178,2]
[421408234,1777576243000,-500.0,0.00019178,2]
[421408235,1777576243000,-500.0,0.00019178,2]
[421408216,1777576243000,-500.0,0.00019178,2]
[421408236,1777576243000,-500.0,0.00019178,2]
[421408245,1777576243000,-339.91492179,0.00019178,2]
[421408232,1777576243000,-2300.65,0.00019178,2]
[421408247,1777576243000,-600.05,0.00019178,2]
[421408244,1777576243000,-500.0,0.00019178,2]
[421408243,1777576243000,-500.0,0.00019178,2]
[421408246,1777576243000,-160.08507821,0.00019178,2]
[421408238,1777576243000,-504.03,0.00019178,2]
[421408239,1777576243000,-500.0,0.00019178,2]
[421408240,1777576243000,-549.39082308,0.00019178,2]
[421408237,1777576243000,-590.29,0.00019178,2]
[421408241,1777576243000,-500.0,0.00019178,2]
[421408291,1777576244000,-1022.14,0.00019178,2]
[421408286,1777576244000,-521.3,0.00019178,2]
[421408284,1777576244000,-500.0,0.00019178,2]
[421408293,1777576244000,-500.0,0.00019178,2]
[421408295,1777576244000,-384.71662046,0.00019178,2]
[421408294,1777576244000,-115.28337954,0.00019178,2]
[421408292,1777576244000,-658.59,0.00019178,2]
[421408285,1777576244000,-500.0,0.00019178,2]
[421408287,1777576244000,-181.20396999,0.00019178,2]
[421408279,1777576244000,-151.0,0.00018479,2]
[421408282,1777576244000,-500.0,0.00019178,2]
[421408280,1777576244000,-151.0,0.000191,2]
[421408278,1777576244000,-154.456771,0.00018,2]
[421408275,1777576244000,-200.0,0.00016898,2]
[421408277,1777576244000,-151.0,0.00018,2]
[421408276,1777576244000,-200.0,0.00017402,2]
[421408274,1777576244000,-151.0,0.00016438,2]
[421408289,1777576244000,-388.31645984,0.00019178,2]
[421408283,1777576244000,-500.0,0.00019178,2]
[421408288,1777576244000,-500.0,0.00019178,2]
[421408281,1777576244000,-95.90862585,0.00019178,2]
[421408297,1777576244000,-1430.29662046,0.00019178,2]
[421408290,1777576244000,-500.0,0.00019178,2]
[421408316,1777576244000,-305.25454945,0.00019178,2]
[421408312,1777576244000,-743.13,0.00019178,2]
[421408313,1777576244000,-516.89,0.00019178,2]
[421408311,1777576244000,-500.0,0.00019178,2]
[421408314,1777576244000,-958.84,0.00019178,2]
[421408309,1777576244000,-1425.52,0.00019178,2]
[421408308,1777576244000,-500.0,0.00019178,2]
[421408315,1777576244000,-500.0,0.00019178,2]
[421408306,1777576244000,-500.0,0.00019178,2]
[421408310,1777576244000,-180.26931886,0.00019178,2]
[421408302,1777576244000,-500.0,0.00019178,2]
[421408304,1777576244000,-923.8,0.00019178,2]
[421408299,1777576244000,-500.0,0.00019178,2]
[421408301,1777576244000,-500.0,0.00019178,2]
[421408303,1777576244000,-500.0,0.00019178,2]
[421408298,1777576244000,-500.0,0.00019178,2]
[421408305,1777576244000,-500.0,0.00019178,2]
[421408300,1777576244000,-500.0,0.00019178,2]
[421408296,1777576244000,-1246.28337954,0.00019178,2]
[421408307,1777576244000,-500.0,0.00019178,2]
[421408320,1777576245000,-200.0,0.00016395,2]
[421408317,1777576245000,-500.0,0.00014094,2]
[421408319,1777576245000,-200.0,0.00015891,2]
[421408318,1777576245000,-170.73,0.00015387,2]
[421408322,1777576245000,-500.0,0.00019178,2]
[421408321,1777576245000,-247.87545055,0.00019178,2]
[421408323,1777576245000,-298.72652277,0.00019178,2]
[421408332,1777576247000,-1770.16810673,0.00019178,2]
[421408330,1777576247000,-1769.93639337,0.00019063,2]
[421408331,1777576247000,-853.65347723,0.00019178,2]
[421408329,1777576247000,-1443.25030795,0.00019063,2]
[421408407,1777577437000,-473.57376399,0.0001,2]
[421408420,1777577438000,-300.0,0.0001427,2]
[421408414,1777577438000,-123.86786123,0.00014261,2]
[421408425,1777577438000,-300.0,0.0001427,2]
[421408415,1777577438000,-2026.87013877,0.00014261,2]
[421408408,1777577438000,-2356.38326151,0.0001,2]
[421408412,1777577438000,-1000.0,0.00014091,2]
[421408411,1777577438000,-255.69975057,0.00013723,2]
[421408410,1777577438000,-566.0,0.00013699,2]
[421408409,1777577438000,-1000.0,0.00013699,2]
[421408424,1777577438000,-300.0,0.0001427,2]
[421408413,1777577438000,-537.6845,0.00014261,2]
[421408418,1777577438000,-300.0,0.0001427,2]
[421408416,1777577438000,-500.0,0.00014269,2]
[421408423,1777577438000,-300.0,0.0001427,2]
[421408431,1777577438000,-300.0,0.0001427,2]
[421408428,1777577438000,-300.0,0.0001427,2]
[421408432,1777577438000,-600.0,0.0001427,2]
[421408433,1777577438000,-557.5788265,0.00014316,2]
[421408434,1777577438000,-541.75411967,0.00014371,2]
[421408430,1777577438000,-300.0,0.0001427,2]
[421408419,1777577438000,-300.0,0.0001427,2]
[421408426,1777577438000,-300.0,0.0001427,2]
[421408427,1777577438000,-300.0,0.0001427,2]
[421408422,1777577438000,-300.0,0.0001427,2]
[421408421,1777577438000,-300.0,0.0001427,2]
[421408417,1777577438000,-300.0,0.0001427,2]
[421408429,1777577438000,-300.0,0.0001427,2]
[421408537,1777577443000,-36.45512341,0.00014371,2]
[421408536,1777577443000,-292.06233017,0.0001,2]
[421408538,1777577443000,-599.60298507,0.00014426,2]
[421408540,1777577443000,-644.79446246,0.00014536,2]
[421408543,1777577443000,-323.84695493,0.00014646,2]
[421408542,1777577443000,-369.54502137,0.00014646,2]
[421408539,1777577443000,-621.78829552,0.00014481,2]
[421408544,1777577443000,-214.44895677,0.00014701,2]
[421408541,1777577443000,-668.65185757,0.00014591,2]
[421408545,1777577443000,-281.21971155,0.00014809,2]
[421408563,1777577446000,-1421.75448164,0.00014809,2]
[421408564,1777577448000,1043.43987476,7.6e-05,2]
[421408565,1777577449000,503.56012524,0.0001,2]
[421408578,1777578631000,-76.52437115,0.0001,2]
[421408576,1777578631000,-1200.0,9.999e-05,2]
[421408575,1777578631000,-560.0,9.999e-05,2]
[421408577,1777578631000,-273.63090849,9.999e-05,2]
[421408579,1777578631000,-5497.72452023,0.0001,2]
[421408581,1777578631000,-300.0,0.00010199,2]
[421408580,1777578631000,-300.0,0.00010199,2]
[421408587,1777578632000,-294.26810013,0.00010199,2]
[421408586,1777578632000,-300.0,0.00010199,2]
[421408582,1777578632000,-300.0,0.00010199,2]
[421408585,1777578632000,-300.0,0.00010199,2]
[421408584,1777578632000,-300.0,0.00010199,2]
[421408583,1777578632000,-300.0,0.00010199,2]
[421408638,1777578638000,-83.97451949,0.00010199,2]
[421408640,1777578638000,-216.02548051,0.00010199,2]
[421408655,1777578638000,-621.6701245,0.00015031,2]
[421408653,1777578638000,-794.6691468,0.00015031,2]
[421408663,1777578638000,-1372.08967611,0.00015539,2]
[421408636,1777578638000,-300.0,0.00010199,2]
[421408651,1777578638000,-372.13803555,0.00013999,2]
[421408632,1777578638000,-300.0,0.00010199,2]
[421408648,1777578638000,-1000.0,0.00013699,2]
[421408650,1777578638000,-1000.0,0.00013952,2]
[421408646,1777578638000,-152.0,0.000135,7]
[421408645,1777578638000,-322.88447202,0.00011999,2]
[421408643,1777578638000,-300.0,0.00010199,2]
[421408641,1777578638000,-300.0,0.00010199,2]
[421408631,1777578638000,-300.0,0.00010199,2]
[421408629,1777578638000,-5.73189987,0.00010199,2]
[421408656,1777578638000,-4332.41405301,0.00015031,2]
[421408634,1777578638000,-300.0,0.00010199,2]
[421408669,1777578638000,-403.16525456,0.00015564,2]
[421408660,1777578638000,-152.0,0.00015034,7]
[421408666,1777578638000,-968.92442155,0.00015564,2]
[421408696,1777578638000,-333.04255409,0.00015725,2]
[421408682,1777578638000,-221.9001347,0.00015725,2]
[421408694,1777578638000,-500.0,0.00015725,2]
[421408680,1777578638000,-1372.08967611,0.00015675,2]
[421408678,1777578638000,-1372.08967611,0.00015665,2]
[421408692,1777578638000,-619.23570678,0.00015725,2]
[421408690,1777578638000,-500.0,0.00015725,2]
[421408675,1777578638000,-1146.95576253,0.00015594,2]
[421408677,1777578638000,-783.21873801,0.00015643,2]
[421408688,1777578638000,-500.0,0.00015725,2]
[421408687,1777578638000,-500.0,0.00015725,2]
[421408684,1777578638000,-500.0,0.00015725,2]
[421408685,1777578638000,-500.0,0.00015725,2]
[421408671,1777578638000,-1372.08967611,0.00015575,2]
[421408697,1777578638000,-21387.06099119,0.00015726,2]
[421408665,1777578638000,-500.0,0.00015563,2]
[421408658,1777578638000,-481.68948809,0.00015031,2]
[421408673,1777578638000,-225.13391358,0.00015594,2]
[421408662,1777578638000,-152.0,0.0001508,7]
[421408726,1777578640000,-6981.63,0.00015726,2]
[421408737,1777578643000,-1115.78353468,0.00015726,2]
[421408756,1777578646000,-805.48,0.00015726,2]
[421408761,1777579321000,-1240.62697649,0.00010354,2]
[421408763,1777579338000,-565.0,0.00010354,2]
[421408765,1777579361000,-565.0,0.00010354,2]
[421408766,1777579379000,-1543.08025048,0.00010354,2]
[421408904,1777579838000,-172.0756,0.00010999,2]
[421408929,1777579838000,-1372.08967611,0.00015837,2]
[421408927,1777579838000,-445.22673363,0.00015793,2]
[421408924,1777579838000,-364.62459422,0.00015778,2]
[421408925,1777579838000,-152.0,0.00015781,7]
[421408926,1777579838000,-179.91507853,0.00015793,2]
[421408923,1777579838000,-1007.46508189,0.00015778,2]
[421408921,1777579838000,-1372.08967611,0.00015749,2]
[421408917,1777579838000,-889.32440478,0.00015737,2]
[421408922,1777579838000,-1372.08967611,0.00015757,2]
[421408920,1777579838000,-1372.08967611,0.00015745,2]
[421408918,1777579838000,-529.0,0.0001574,2]
[421408919,1777579838000,-1372.08967611,0.00015743,2]
[421408916,1777579838000,-2384.0074406,0.0001504,2]
[421408914,1777579838000,-2397.8660702,0.0001504,2]
[421408911,1777579838000,-358.4597451,0.00014251,2]
[421408906,1777579838000,-311.01654354,0.00012251,2]
[421408910,1777579838000,-1000.0,0.00014035,2]
[421408908,1777579838000,-1000.0,0.00013699,2]
[421408899,1777579838000,-523.60051223,0.00010046,2]
[421408901,1777579838000,-263.57334198,0.00010251,2]
[421408902,1777579838000,-7651.11325454,0.00010354,2]
[421408931,1777579838000,-185.0,0.0001585,2]
[421408930,1777579838000,-442.0,0.0001585,2]
[421408912,1777579838000,-466.2525934,0.00015023,2]
[421408933,1777579838000,-1372.08967611,0.00015873,2]
[421408932,1777579838000,-500.0,0.00015872,2]
[421408956,1777579838000,-300.0,0.00016039,2]
[421408954,1777579838000,-300.0,0.00016039,2]
[421408953,1777579838000,-300.0,0.00016039,2]
[421408955,1777579838000,-300.0,0.00016039,2]
[421408952,1777579838000,-300.0,0.00016039,2]
[421408949,1777579838000,-300.0,0.00016039,2]
[421408950,1777579838000,-300.0,0.00016039,2]
[421408946,1777579838000,-1372.08967611,0.00015994,2]
[421408944,1777579838000,-1372.08967611,0.00015942,2]
[421408947,1777579838000,-1372.08967611,0.00016019,2]
[421408948,1777579838000,-1372.08967611,0.00016022,2]
[421408951,1777579838000,-300.0,0.00016039,2]
[421408942,1777579838000,-1372.08967611,0.00015926,2]
[421408945,1777579838000,-1372.08967611,0.00015966,2]
[421408940,1777579838000,-500.0,0.00015914,2]
[421408941,1777579838000,-1372.08967611,0.00015915,2]
[421408939,1777579838000,-1372.08967611,0.00015902,2]
[421408938,1777579838000,-500.0,0.00015893,2]
[421408936,1777579838000,-500.0,0.00015893,2]
[421408937,1777579838000,-500.0,0.00015893,2]
[421408935,1777579838000,-500.0,0.00015893,2]
[421408928,1777579838000,-15749.65464925,0.00015794,2]
[421408943,1777579838000,-1372.08967611,0.00015933,2]
[421408934,1777579838000,-1372.08967611,0.00015885,2]
[421409009,1777579839000,-714.42847467,0.00016438,2]
[421408999,1777579839000,-1372.08967611,0.00016338,2]
[421408995,1777579839000,-405.90294666,0.00016251,2]
[421408997,1777579839000,-1372.08967611,0.00016333,2]
[421408996,1777579839000,-1372.08967611,0.00016256,2]
[421408990,1777579839000,-1372.08967611,0.000161,2]
[421408992,1777579839000,-1372.08967611,0.00016159,2]
[421408989,1777579839000,-817.58586067,0.00016097,2]
[421408993,1777579839000,-1372.08967611,0.00016178,2]
[421409000,1777579839000,-1372.08967611,0.00016343,2]
[421408994,1777579839000,-1372.08967611,0.00016227,2]
[421408991,1777579839000,-1372.08967611,0.0001613,2]
[421408998,1777579839000,-500.0,0.00016336,2]
[421409013,1777579839000,-275.0,0.00017206,2]
[421409002,1777579839000,-1372.08967611,0.00016344,2]
[421409008,1777579839000,-2212.0,0.00016431,2]
[421409006,1777579839000,-646.0,0.00016431,2]
[421409005,1777579839000,-1372.08967611,0.00016425,2]
[421409003,1777579839000,-1372.08967611,0.000164,2]
[421409001,1777579839000,-500.0,0.00016343,2]
[421409004,1777579839000,-889.32440474,0.0001641,2]
[421409007,1777579839000,-1410.0,0.00016431,2]
[421409011,1777579839000,-1372.08967611,0.00016461,2]
[421408986,1777579839000,-817.58586067,0.00016097,2]
[421409012,1777579839000,-889.32440474,0.00017083,2]
[421409016,1777579839000,-177.74,0.00017301,2]
[421409023,1777579839000,-727.24857112,0.000176,2]
[421409010,1777579839000,-1372.08967611,0.00016459,2]
[421408987,1777579839000,-817.58586067,0.00016097,2]
[421408978,1777579839000,-817.58586067,0.00016097,2]
[421408981,1777579839000,-817.58586067,0.00016097,2]
[421409019,1777579839000,-262.0,0.00017509,2]
[421408960,1777579839000,-300.0,0.00016039,2]
[421408958,1777579839000,-300.0,0.00016039,2]
[421408957,1777579839000,-300.0,0.00016039,2]
[421408959,1777579839000,-300.0,0.00016039,2]
[421408962,1777579839000,-300.0,0.00016039,2]
[421408972,1777579839000,-817.58586067,0.00016097,2]
[421408973,1777579839000,-817.58586067,0.00016097,2]
[421408961,1777579839000,-300.0,0.00016039,2]
[421408965,1777579839000,-1372.08967611,0.00016065,2]
[421408963,1777579839000,-300.0,0.00016039,2]
[421408964,1777579839000,-1372.08967611,0.00016047,2]
[421408970,1777579839000,-346.76895942,0.00016097,2]
[421408988,1777579839000,-817.58586067,0.00016097,2]
[421408968,1777579839000,-1372.08967611,0.00016078,2]
[421408969,1777579839000,-817.58586067,0.00016097,2]
[421408966,1777579839000,-1372.08967611,0.00016072,2]
[421408971,1777579839000,-817.58586067,0.00016097,2]
[421408974,1777579839000,-817.58586067,0.00016097,2]
[421408977,1777579839000,-817.58586067,0.00016097,2]
[421408975,1777579839000,-817.58586067,0.00016097,2]
[421408983,1777579839000,-817.58586067,0.00016097,2]
[421408980,1777579839000,-817.58586067,0.00016097,2]
[421408979,1777579839000,-817.58586067,0.00016097,2]
[421408976,1777579839000,-817.58586067,0.00016097,2]
[421408982,1777579839000,-817.58586067,0.00016097,2]
[421408985,1777579839000,-817.58586067,0.00016097,2]
[421408984,1777579839000,-817.58586067,0.00016097,2]
[421408967,1777579839000,-500.0,0.00016076,2]
[421409014,1777579839000,-2150.738,0.0001729,2]
[421409025,1777579839000,-207.024208,0.0001764,2]
[421409022,1777579839000,-160.0,0.0001758,2]
[421409060,1777579839000,-933.63809712,0.000182,2]
[421409052,1777579839000,-269.0,0.00018015,2]
[421409061,1777579839000,-261.17216892,0.000182,2]
[421409054,1777579839000,-500.0,0.00018199,2]
[421409059,1777579839000,-209.96181608,0.000182,2]
[421409056,1777579839000,-211.75603676,0.000182,2]
[421409058,1777579839000,-170.09122794,0.000182,2]
[421409055,1777579839000,-1273.80862451,0.000182,2]
[421409057,1777579839000,-172.18058726,0.000182,2]
[421409063,1777579839000,-269.0,0.00018214,2]
[421409073,1777579839000,-933.63809712,0.000184,2]
[421409062,1777579839000,-151.0,0.000182,2]
[421409066,1777579839000,-727.24857112,0.000183,2]
[421409049,1777579839000,-261.17216892,0.00018,2]
[421409064,1777579839000,-453.34614821,0.00018251,2]
[421409071,1777579839000,-1273.80862451,0.000184,2]
[421409069,1777579839000,-466.2525934,0.00018384,2]
[421409070,1777579839000,-2312.83697232,0.00018386,2]
[421409067,1777579839000,-151.0,0.000183,2]
[421409072,1777579839000,-170.09122794,0.000184,2]
[421409068,1777579839000,-151.0,0.000183,2]
[421409075,1777579839000,-239.0,0.000184,2]